bitfinex/quotes_BTCUSD_20250412
["timestamp","ask_amount","ask_price","bid_price","bid_amount"]
[1744444537450,0.248897,83718.0,83717.0,0.01127936]
[1744444540704,0.3251474,83718.0,83717.0,0.01127936]
[1744444540897,0.248897,83718.0,83717.0,0.01127936]
[1744444541164,0.011945,83715.0,83710.0,0.01576112]
[1744444541368,0.021945,83715.0,83710.0,0.25468012]
[1744444542059,0.021945,83715.0,83710.0,0.250865]
[1744444542614,0.011945,83714.0,83710.0,0.250865]
[1744444542838,0.021945,83714.0,83710.0,0.250865]
[1744444546082,0.24892,83710.0,83709.0,0.00098383]
[1744444549966,0.29402,83710.0,83709.0,0.00098383]
[1744444552442,0.41486154,83710.0,83709.0,0.00098383]
[1744444572398,0.42108244,83710.0,83709.0,0.00098383]
[1744444573134,0.41486154,83710.0,83709.0,0.00098383]
[1744444579336,0.64676597,83710.0,83709.0,0.00098383]
[1744444579493,0.76022116,83710.0,83709.0,0.00098383]
[1744444579700,0.76022116,83710.0,83700.0,8.3e-07]
[1744444579701,0.53584201,83710.0,83700.0,8.3e-07]
[1744444579898,0.288445,83701.0,83700.0,8.3e-07]
[1744444580106,0.58928654,83701.0,83700.0,8.3e-07]
[1744444580299,0.6468925,83701.0,83700.0,8.3e-07]
[1744444580504,1.23433778,83701.0,83700.0,8.3e-07]
[1744444582213,1.24654062,83701.0,83700.0,8.3e-07]
[1744444582565,1.24654062,83701.0,83666.0,0.199192]
[1744444582566,0.35454085,83693.0,83692.0,7.2e-07]
[1744444582802,1.1060153,83693.0,83692.0,7.2e-07]
[1744444584554,0.64401185,83692.0,83691.0,7.2e-07]
[1744444584677,0.92485339,83692.0,83691.0,7.2e-07]
[1744444584883,1.15675782,83692.0,83691.0,7.2e-07]
[1744444585210,1.2774863,83692.0,83691.0,7.2e-07]
[1744444585623,1.15675782,83692.0,83691.0,7.2e-07]
[1744444587904,1.29463782,83692.0,83691.0,7.2e-07]
[1744444588060,1.28009697,83692.0,83691.0,7.2e-07]
[1744444588488,1.14121697,83692.0,83691.0,7.2e-07]
[1744444588688,1.28636067,83692.0,83691.0,7.2e-07]
[1744444590735,1.3869294,83692.0,83691.0,7.2e-07]
[1744444590904,1.28636067,83692.0,83691.0,7.2e-07]
[1744444594662,1.30090152,83692.0,83691.0,7.2e-07]
[1744444597381,1.30190152,83692.0,83691.0,7.2e-07]
[1744444602375,1.23686067,83692.0,83691.0,7.2e-07]
[1744444602594,0.75794067,83692.0,83691.0,7.2e-07]
[1744444602775,0.75794067,83692.0,83676.0,0.04684846]
[1744444602776,0.239014,83677.0,83676.0,0.04684846]
[1744444602953,0.269014,83677.0,83676.0,0.04684846]
[1744444603159,0.03,83677.0,83676.0,0.01969914]
[1744444603520,0.01195,83676.0,83671.0,0.25098]
[1744444603885,0.03195,83676.0,83671.0,0.25098]
[1744444604038,0.02,83676.0,83671.0,0.25144576]
[1744444604229,0.03195,83676.0,83671.0,0.25144576]
[1744444604596,0.02,83676.0,83673.0,0.239023]
[1744444605901,0.02,83676.0,83674.0,0.0451]
[1744444606614,0.02,83676.0,83674.0,0.0937]
[1744444608283,0.02,83676.0,83674.0,0.33272]
[1744444609502,0.02,83676.0,83674.0,0.0937]
[1744444611801,0.02,83676.0,83675.0,0.23902]
[1744444612299,0.02,83676.0,83674.0,0.0937]
[1744444614337,0.02,83676.0,83674.0,0.0451]
[1744444617850,0.02,83676.0,83671.0,0.25144576]
[1744444617851,0.011951,83675.0,83671.0,0.25144576]
[1744444617998,0.031951,83675.0,83671.0,0.25144576]
[1744444618199,0.011951,83674.0,83671.0,0.23949476]
[1744444618420,0.02,83674.0,83671.0,0.23949476]
[1744444619063,0.02,83674.0,83671.0,0.00046576]
[1744444619406,0.259023,83674.0,83671.0,0.00046576]
[1744444619607,0.270974,83674.0,83671.0,0.00046576]
[1744444620272,0.02,83674.0,83671.0,0.00046576]
[1744444620475,0.02,83674.0,83672.0,0.239028]
[1744444621082,0.031951,83674.0,83671.0,0.00046576]
[1744444621300,0.270975,83674.0,83671.0,0.00046576]
[1744444623635,0.239028,83672.0,83671.0,0.00046576]
[1744444623811,0.409028,83672.0,83671.0,0.00046576]
[1744444626316,0.17,83672.0,83671.0,0.00046576]
[1744444627415,0.409028,83672.0,83671.0,0.00046576]
[1744444628225,0.17,83672.0,83671.0,0.00046576]
[1744444636224,0.29084154,83672.0,83671.0,0.00046576]
[1744444636467,0.33794154,83672.0,83671.0,0.00046576]
[1744444639056,0.34959612,83672.0,83671.0,0.00046576]
[1744444640486,0.58150055,83672.0,83671.0,0.00046576]
[1744444646947,1.09142903,83672.0,83671.0,0.00046576]
[1744444647768,0.97070055,83672.0,83671.0,0.00046576]
[1744444651465,0.97070055,83672.0,83671.0,7.6e-07]
[1744444651596,0.97170055,83672.0,83671.0,7.6e-07]
[1744444652412,0.9862414,83672.0,83671.0,7.6e-07]
[1744444657390,0.9862414,83672.0,83661.0,7.6e-07]
[1744444657391,0.385,83662.0,83661.0,7.6e-07]
[1744444657556,0.81404154,83662.0,83661.0,0.00012875]
[1744444658289,0.86826727,83662.0,83661.0,0.00012875]
[1744444660890,1.1001717,83662.0,83661.0,0.00012875]
[1744444661346,1.0521717,83662.0,83661.0,0.00012875]
[1744444661700,0.9139717,83662.0,83661.0,0.00012875]
[1744444662253,1.03470018,83662.0,83661.0,0.00012875]
[1744444664506,1.0521717,83662.0,83661.0,0.00012875]
[1744444666695,0.9139717,83662.0,83661.0,0.00012875]
[1744444667619,0.8689717,83662.0,83661.0,0.00012875]
[1744444671941,0.5289717,83662.0,83661.0,0.00012875]
[1744444698911,0.17622573,83662.0,83661.0,0.00012875]
[1744444699194,0.17622573,83662.0,83661.0,0.04992875]
[1744444700021,0.17622573,83662.0,83661.0,0.00012875]
[1744444733331,0.17,83662.0,83661.0,0.00012875]
[1744444769130,0.17,83662.0,83661.0,0.23918875]
[1744444770486,0.17,83662.0,83661.0,0.24665762]
[1744444777013,0.01195,83679.0,83672.0,0.239025]
[1744444777182,0.37190443,83678.0,83677.0,0.239014]
[1744444777566,0.37190443,83678.0,83672.0,0.239025]
[1744444777768,0.38385443,83678.0,83674.0,0.239022]
[1744444778293,0.15195,83678.0,83674.0,0.24648929]
[1744444779089,0.15195,83678.0,83674.0,0.239022]
[1744444780453,0.01195,83677.0,83673.0,0.239025]
[1744444780653,0.16195,83677.0,83673.0,0.239025]
[1744444782764,0.400964,83677.0,83673.0,0.239025]
[1744444783003,0.01195,83676.0,83673.0,0.239025]
[1744444783240,0.19195,83676.0,83673.0,0.239025]
[1744444787642,0.011951,83675.0,83672.0,0.239025]
[1744444787935,0.181951,83675.0,83672.0,0.239025]
[1744444794896,0.17,83675.0,83672.0,0.239025]
[1744444795260,0.181951,83675.0,83672.0,0.239025]
[1744444797508,0.011951,83673.0,83670.0,0.00746729]
[1744444797715,0.04,83673.0,83670.0,0.24649929]
[1744444797861,0.04,83673.0,83670.0,0.239032]
[1744444798923,0.04,83673.0,83670.0,0.24649929]
[1744444799338,0.04,83673.0,83671.0,0.00746729]
[1744444800091,0.051951,83673.0,83670.0,0.239032]
[1744444800592,0.051951,83673.0,83668.0,0.239038]
[1744444800593,0.011951,83671.0,83668.0,0.239038]
[1744444800799,0.041951,83671.0,83668.0,0.239038]
[1744444801155,0.041951,83671.0,83669.0,0.00746733]
[1744444802037,0.041951,83671.0,83670.0,0.00746733]
[1744444802678,0.03,83671.0,83670.0,0.00746733]
[1744444804963,0.03,83671.0,83668.0,0.239038]
[1744444805631,0.041951,83671.0,83668.0,0.239038]
[1744444807030,0.03,83671.0,83668.0,0.239038]
[1744444807240,0.03,83671.0,83670.0,0.239034]
[1744444808823,0.01195,83681.0,83677.0,0.239011]
[1744444809031,0.07,83681.0,83678.0,0.239009]
[1744444809235,0.07,83681.0,83679.0,0.239006]
[1744444809429,0.07,83681.0,83678.0,0.239009]
[1744444809830,0.0698192,83681.0,83678.0,0.239009]
[1744444811366,0.0817692,83681.0,83678.0,0.239009]
[1744444812143,0.0698192,83681.0,83678.0,0.239009]
[1744444812594,0.0698192,83681.0,83679.0,0.239006]
[1744444813191,0.0817692,83681.0,83678.0,0.239009]
[1744444813571,0.0698192,83681.0,83679.0,0.239006]
[1744444816159,0.0698192,83681.0,83679.0,0.24647304]
[1744444817871,0.0698192,83681.0,83680.0,0.00746704]
[1744444819321,0.0698192,83681.0,83680.0,0.05855683]
[1744444819527,0.23190443,83692.0,83689.0,0.011949]
[1744444819758,0.01298047,83696.0,83693.0,0.238968]
[1744444819759,0.02492847,83696.0,83693.0,0.238968]
[1744444819934,0.18492847,83696.0,83693.0,0.238968]
[1744444820499,0.17298047,83696.0,83693.0,0.238968]
[1744444820919,0.18492847,83696.0,83693.0,0.238968]
[1744444821367,0.17298047,83696.0,83693.0,0.238968]
[1744444821711,0.17298047,83696.0,83694.0,0.238963]
[1744444822477,0.17298047,83696.0,83694.0,0.24642799]
[1744444822826,0.1608446,83696.0,83695.0,0.00238945]
[1744444825354,0.0008446,83696.0,83695.0,0.00238945]
[1744444829868,0.0008446,83696.0,83694.0,0.24642781]
[1744444831102,0.0108446,83696.0,83694.0,0.24642781]
[1744444831728,0.0227926,83696.0,83689.0,0.23898]
[1744444831883,0.0108446,83696.0,83691.0,0.238974]
[1744444832081,0.0108446,83696.0,83685.0,0.13684]
[1744444832082,0.011949,83689.0,83685.0,0.13684]
[1744444832289,0.0478,83687.0,83685.0,0.13684]
[1744444832506,0.0678,83687.0,83685.0,0.13684]
[1744444833429,0.238996,83684.0,83681.0,0.4081998]
[1744444833631,0.239,83682.0,83681.0,0.4081998]
[1744444833926,0.279,83682.0,83681.0,0.4081998]
[1744444836529,0.274,83682.0,83681.0,0.4081998]
[1744444836913,0.01195,83679.0,83675.0,0.250968]
[1744444837126,0.02,83679.0,83677.0,0.239013]
[1744444842639,0.02,83679.0,83676.0,0.01195]
[1744444842640,0.011951,83674.0,83671.0,0.13684]
[1744444842847,0.03,83674.0,83671.0,0.38794699]
[1744444843273,0.03,83674.0,83672.0,0.239026]
[1744444843719,0.03,83674.0,83671.0,0.25110699]
[1744444845321,0.041951,83674.0,83671.0,0.23915599]
[1744444845517,0.03,83674.0,83671.0,0.23915599]
[1744444847326,0.03,83674.0,83671.0,0.00012799]
[1744444847529,0.041951,83674.0,83671.0,0.00012799]
[1744444848732,0.280976,83674.0,83671.0,0.00012799]
[1744444849338,0.041951,83674.0,83671.0,0.00012799]
[1744444852740,0.041951,83674.0,83671.0,0.23915699]
[1744444853592,0.041951,83674.0,83671.0,0.00012799]
[1744444854977,0.03,83674.0,83671.0,0.25110699]
[1744444855413,0.239028,83672.0,83671.0,0.00012799]
[1744444855556,0.82037397,83672.0,83671.0,0.00012799]
[1744444856996,0.82037397,83672.0,83661.0,7.6e-07]
[1744444856997,1.20557397,83672.0,83661.0,7.6e-07]
[1744444857201,0.332857,83662.0,83661.0,7.6e-07]
[1744444857398,0.83560297,83662.0,83661.0,7.6e-07]
[1744444859239,0.83560297,83662.0,83657.0,0.0004224]
[1744444859240,0.287668,83658.0,83657.0,0.0004224]
[1744444859387,0.58850954,83658.0,83657.0,0.0004224]
[1744444860271,0.82041397,83658.0,83657.0,0.0004224]
[1744444866312,0.82081397,83658.0,83657.0,0.0004224]
[1744444866892,0.672902,83646.0,83645.0,0.000422]
[1744444867102,0.97374354,83646.0,83645.0,0.00054988]
[1744444867263,1.20564797,83646.0,83645.0,0.00054988]
[1744444867463,1.21731214,83646.0,83645.0,0.00054988]
[1744444867683,1.22354196,83646.0,83645.0,0.00054988]
[1744444869251,1.23262855,83646.0,83645.0,0.00054988]
[1744444869444,1.22354196,83646.0,83645.0,0.00054988]
[1744444878589,1.36050196,83646.0,83645.0,0.00054988]
[1744444893541,1.22354196,83646.0,83645.0,0.00054988]
[1744444893706,1.36050196,83646.0,83645.0,0.00054988]
[1744444894975,1.12974196,83646.0,83645.0,0.00054988]
[1744444895179,0.78974196,83646.0,83645.0,0.00054988]
[1744444916933,0.65723625,83646.0,83645.0,0.00054988]
[1744444918936,0.66924212,83646.0,83645.0,0.00054988]
[1744444922389,0.65723625,83646.0,83645.0,0.00054988]
[1744444923988,0.66946043,83646.0,83645.0,0.00054988]
[1744444931082,0.83760197,83646.0,83645.0,0.00054988]
[1744444934699,1.43525045,83646.0,83645.0,0.00054988]
[1744444935428,1.31452197,83646.0,83645.0,0.00054988]
[1744444949091,1.31456197,83646.0,83645.0,0.00054988]
[1744444953108,1.17760197,83646.0,83645.0,0.00054988]
[1744444953251,1.31452197,83646.0,83645.0,0.00054988]
[1744444953870,1.26088561,83646.0,83645.0,0.00054988]
[1744444955307,0.66312407,83646.0,83645.0,0.00054988]
[1744444956926,0.65089989,83646.0,83645.0,0.00054988]
[1744444959210,0.66310191,83646.0,83645.0,0.00054988]
[1744444988770,0.82974345,83646.0,83645.0,0.00054988]
[1744445002201,0.41899546,83646.0,83645.0,0.00054988]
[1744445002337,0.41276564,83646.0,83645.0,0.00054988]
[1744445003130,0.41276564,83646.0,83645.0,0.00802101]
[1744445003535,0.41276564,83646.0,83645.0,0.00054988]
[1744445004369,0.18,83646.0,83645.0,0.00802101]
[1744445004814,0.18,83646.0,83645.0,0.05332101]
[1744445006257,0.0004,83658.0,83655.0,0.011953]
[1744445006463,0.0504,83658.0,83656.0,0.0944]
[1744445006662,0.0004,83658.0,83656.0,0.34094513]
[1744445007006,0.0104,83658.0,83656.0,0.34094513]
[1744445007235,0.0104,83658.0,83657.0,0.00747113]
[1744445007421,0.0104,83658.0,83657.0,0.00986169]
[1744445008281,0.0104,83658.0,83657.0,0.00747113]
[1744445008685,0.0104,83658.0,83657.0,0.0098616]
[1744445009539,0.0104,83658.0,83657.0,0.00239047]
[1744445009805,0.0104,83658.0,83656.0,0.34094513]
[1744445009980,0.0104,83658.0,83657.0,0.00747113]
[1744445010550,0.0104,83658.0,83657.0,0.00986136]
[1744445010759,0.0004,83658.0,83657.0,0.57964375]
[1744445010961,0.0004,83658.0,83657.0,0.58113884]
[1744445012303,0.0008442,83680.0,83677.0,0.01195]
[1744445012633,0.0008442,83680.0,83678.0,0.312511]
[1744445012634,0.0408442,83680.0,83678.0,0.312511]
[1744445016365,0.0408442,83680.0,83679.0,0.00238983]
[1744445018713,0.0008442,83680.0,83679.0,0.47777222]
[1744445018922,2e-07,83680.0,83679.0,0.98168219]
[1744445019197,6e-07,83681.0,83680.0,0.69164585]
[1744445019327,8e-07,83696.0,83695.0,0.35454085]
[1744445019527,0.0008442,83709.0,83705.0,0.578934]
[1744445019803,0.00130967,83706.0,83705.0,0.71431639]
[1744445019993,0.00042886,83706.0,83705.0,0.83657554]
[1744445020354,0.00042886,83706.0,83705.0,0.578934]
[1744445020552,0.00042886,83706.0,83705.0,0.715734]
[1744445025512,0.00042886,83706.0,83705.0,0.1368]
[1744445025716,0.03042886,83706.0,83705.0,0.1368]
[1744445030511,0.03042886,83706.0,83705.0,0.14882867]
[1744445031846,0.00042886,83706.0,83705.0,0.14882867]
[1744445033130,0.00042886,83706.0,83705.0,0.1368]
[1744445033688,0.00042886,83706.0,83705.0,0.18468916]
[1744445033893,0.00042886,83706.0,83705.0,0.3055307]
[1744445034096,0.00042886,83706.0,83705.0,0.31060572]
[1744445034307,0.00042886,83706.0,83705.0,0.71014657]
[1744445035278,0.00042886,83706.0,83705.0,0.71400954]
[1744445037576,0.00042886,83706.0,83705.0,1.12220934]
[1744445038332,0.0008442,83711.0,83705.0,1.12220934]
[1744445038333,0.011939,83754.0,83725.0,0.59341785]
[1744445038706,0.00098453,83726.0,83725.0,1.33564337]
[1744445039111,0.00098453,83726.0,83725.0,1.33950634]
[1744445039695,0.00098453,83726.0,83725.0,1.27050634]
[1744445039895,0.00098453,83726.0,83725.0,1.25596549]
[1744445040335,0.00098453,83726.0,83725.0,1.11924549]
[1744445040537,0.00098453,83726.0,83725.0,1.25596549]
[1744445041910,0.00098453,83726.0,83725.0,1.13512395]
[1744445042168,0.00098453,83726.0,83725.0,0.72692415]
[1744445042565,0.00098453,83726.0,83725.0,0.38692415]
[1744445044268,0.00098453,83726.0,83725.0,0.38306118]
[1744445045486,0.00098453,83726.0,83725.0,0.14418418]
[1744445045696,0.01098453,83726.0,83725.0,0.14418418]
[1744445045985,0.01098453,83726.0,83725.0,0.13672]
[1744445046501,0.01098453,83726.0,83724.0,0.00746418]
[1744445046502,0.24985953,83726.0,83724.0,0.00746418]
[1744445046702,0.0496,83725.0,83724.0,0.00746418]
[1744445046896,0.0896,83725.0,83724.0,0.00746418]
[1744445047050,0.011944,83723.0,83719.0,0.011944]
[1744445047251,0.03,83723.0,83720.0,0.250835]
[1744445047481,0.03,83723.0,83720.0,0.25829778]
[1744445047682,0.03,83723.0,83721.0,0.238886]
[1744445048042,0.03,83723.0,83722.0,0.00746278]
[1744445055935,0.03,83723.0,83720.0,0.250833]
[1744445055936,0.03,83723.0,83721.0,0.00746278]
[1744445056562,0.03,83723.0,83721.0,0.24634878]
[1744445057351,0.03,83723.0,83722.0,0.00746278]
[1744445065471,0.03,83723.0,83721.0,0.00746278]
[1744445067004,0.03,83723.0,83720.0,0.25829778]
[1744445067217,0.03,83723.0,83719.0,0.011944]
[1744445067218,0.286734,83705.0,83704.0,0.07292198]
[1744445067508,0.408934,83705.0,83704.0,0.07292198]
[1744445067711,0.17,83705.0,83704.0,0.07292198]
[1744445067941,0.01186084,83723.0,83720.0,0.011944]
[1744445067942,0.0487,83723.0,83720.0,0.011944]
[1744445068076,0.000844,83730.0,83725.0,0.238877]
[1744445068285,0.01098453,83726.0,83724.0,0.24126858]
[1744445068504,0.02292753,83726.0,83723.0,0.011944]
[1744445069246,0.01292753,83726.0,83723.0,0.011944]
[1744445069620,0.00098453,83726.0,83723.0,0.011944]
[1744445070711,0.01292753,83726.0,83723.0,0.011944]
[1744445071110,0.25180153,83726.0,83723.0,0.011944]
[1744445072065,0.00098453,83726.0,83723.0,0.37166754]
[1744445073986,0.00098453,83726.0,83720.0,0.238891]
[1744445073987,0.011944,83724.0,83720.0,0.238891]
[1744445074387,0.011944,83724.0,83719.0,0.250836]
[1744445074531,0.011944,83724.0,83720.0,0.011944]
[1744445074741,0.01292753,83726.0,83722.0,0.011944]
[1744445074933,0.02292753,83726.0,83722.0,0.011944]
[1744445075141,0.26180353,83726.0,83722.0,0.011944]
[1744445075347,0.011943,83725.0,83722.0,0.011944]
[1744445075605,0.021943,83725.0,83723.0,0.0038796]
[1744445076520,0.021943,83725.0,83724.0,0.0038796]
[1744445077677,0.021943,83725.0,83723.0,0.0038796]
[1744445078646,0.021943,83725.0,83724.0,0.0038796]
[1744445079226,0.021943,83725.0,83724.0,0.01134204]
[1744445079741,0.021943,83725.0,83724.0,0.0038796]
[1744445079945,0.23888,83724.0,83723.0,0.01134204]
[1744445080284,0.24888,83724.0,83723.0,0.01134204]
[1744445081124,0.24888,83724.0,83723.0,0.00746244]
[1744445081769,0.23888,83724.0,83723.0,0.00746244]
[1744445083802,0.011943,83725.0,83723.0,0.00746244]
[1744445084362,0.250822,83725.0,83723.0,0.00746244]
[1744445084595,0.250822,83725.0,83724.0,0.00746244]
[1744445085804,0.250822,83725.0,83724.0,0.01134192]
[1744445087573,0.260822,83725.0,83724.0,0.01134192]
[1744445088242,0.260822,83725.0,83724.0,0.00746244]
[1744445090327,0.260822,83725.0,83724.0,0.01134192]
[1744445090936,0.250822,83725.0,83724.0,0.01134192]
[1744445091316,0.011943,83725.0,83724.0,0.00746244]
[1744445092487,0.011943,83725.0,83724.0,0.01134192]
[1744445093944,0.011943,83725.0,83724.0,0.00746244]
[1744445094827,0.021943,83725.0,83724.0,0.00746244]
[1744445095285,0.021943,83725.0,83724.0,0.01134192]
[1744445102730,0.069443,83725.0,83724.0,0.01134192]
[1744445104173,0.069443,83725.0,83724.0,0.00746244]
[1744445104388,0.011945,83717.0,83714.0,0.01134192]
[1744445104549,0.031945,83717.0,83714.0,0.01134192]
[1744445104756,0.031945,83717.0,83715.0,0.00746244]
[1744445105147,0.02,83717.0,83715.0,0.24636644]
[1744445105349,0.01292753,83726.0,83722.0,0.011944]
[1744445105572,0.25082,83725.0,83719.0,0.250836]
[1744445105776,0.01,83725.0,83724.0,0.23888]
[1744445106563,0.01,83725.0,83724.0,0.24634244]
[1744445106987,0.01,83725.0,83724.0,0.2526105]
[1744445107182,0.00098453,83726.0,83724.0,0.25022192]
[1744445107406,0.01098453,83726.0,83725.0,0.00238841]
[1744445107687,0.00098453,83726.0,83725.0,0.18298239]
[1744445108063,0.00098453,83726.0,83725.0,0.53044483]
[1744445108241,0.00098453,83726.0,83725.0,0.53432431]
[1744445110488,0.00098453,83726.0,83725.0,0.54318185]
[1744445117163,0.00098453,83726.0,83725.0,0.55152504]
[1744445120883,0.00098453,83726.0,83725.0,0.62439124]
[1744445121379,0.00098453,83726.0,83725.0,1.03259104]
[1744445123477,0.00098453,83726.0,83725.0,0.95138165]
[1744445123996,0.00098453,83726.0,83725.0,1.08810165]
[1744445125180,0.00098453,83726.0,83725.0,1.09644006]
[1744445129984,5.3e-07,83726.0,83725.0,1.09644006]
[1744445130187,0.000844,83740.0,83725.0,1.14214006]
[1744445130386,0.000844,83740.0,83739.0,0.59337785]
[1744445130588,0.000844,83740.0,83739.0,0.71421939]
[1744445130790,0.000844,83740.0,83739.0,0.73002024]
[1744445131195,0.000844,83740.0,83739.0,0.73389972]
[1744445132475,0.000844,83740.0,83739.0,1.14209952]
[1744445133665,0.000844,83740.0,83739.0,1.18859952]
[1744445135706,0.0008442,83742.0,83741.0,0.59337185]
[1744445135904,0.0008442,83742.0,83741.0,0.90191339]
[1744445135905,2e-07,83742.0,83741.0,0.90191339]
[1744445136331,2e-07,83742.0,83741.0,0.91771424]
[1744445136728,2e-07,83742.0,83741.0,0.77851424]
[1744445137011,2e-07,83742.0,83741.0,0.92159372]
[1744445139046,2e-07,83742.0,83741.0,1.32979352]
[1744445139282,2e-07,83742.0,83741.0,1.28129352]
[1744445139687,2e-07,83742.0,83741.0,1.27295511]
[1744445143586,2e-07,83742.0,83741.0,1.28127131]
[1744445151628,2e-07,83742.0,83741.0,1.35413751]
[1744445153586,2e-07,83742.0,83741.0,2.58277751]
[1744445154804,2e-07,83742.0,83741.0,2.50991131]
[1744445157137,2e-07,83742.0,83741.0,2.01617046]
[1744445157365,2e-07,83742.0,83741.0,2.15533046]
[1744445158122,2e-07,83742.0,83741.0,2.55968345]
[1744445159387,2e-07,83742.0,83741.0,2.49535225]
[1744445160166,2e-07,83742.0,83741.0,2.5098931]
[1744445161135,0.05380485,83751.0,83748.0,0.578811]
[1744445161288,0.05380485,83751.0,83748.0,0.84715053]
[1744445161625,0.05380485,83751.0,83748.0,0.85461297]
[1744445162079,0.05380485,83751.0,83748.0,0.86625716]
[1744445162395,0.05380485,83751.0,83748.0,0.87013664]
[1744445162604,0.00620485,83751.0,83748.0,0.88467749]
[1744445165325,0.00620485,83751.0,83748.0,1.30180156]
[1744445166947,0.0008442,83764.0,83759.0,0.23878]
[1744445167150,0.0008442,83764.0,83759.0,1.13308727]
[1744445167545,5.8e-07,83764.0,83763.0,0.239768]
[1744445167718,5.8e-07,83764.0,83763.0,0.85647039]
[1744445167919,0.0004221,83776.0,83773.0,0.57874]
[1744445168149,0.0004221,83776.0,83773.0,1.11611933]
[1744445168703,0.0004221,83776.0,83773.0,1.26490177]
[1744445168900,0.0004221,83776.0,83773.0,1.13241206]
[1744445169103,0.0004221,83776.0,83773.0,1.27761154]
[1744445169291,0.0004221,83776.0,83773.0,0.88395259]
[1744445169998,0.0004221,83776.0,83773.0,0.72809174]
[1744445170199,0.0004221,83776.0,83773.0,0.86941174]
[1744445172619,0.0004221,83776.0,83773.0,0.86058145]
[1744445173592,0.0004221,83776.0,83773.0,0.71926145]
[1744445173757,0.0004221,83776.0,83773.0,0.59841991]
[1744445174897,0.0578891,83774.0,83773.0,0.59841991]
[1744445175455,0.0678891,83774.0,83773.0,0.59841991]
[1744445176003,0.0678891,83774.0,83773.0,0.59008192]
[1744445176618,0.0678891,83774.0,83773.0,0.25008192]
[1744445178984,0.0678891,83774.0,83773.0,0.25839475]
[1744445179695,0.0578891,83774.0,83773.0,0.25839475]
[1744445181548,0.0578891,83774.0,83773.0,0.25008192]
[1744445182281,0.0578891,83774.0,83773.0,0.01134192]
[1744445183022,0.0678891,83774.0,83773.0,0.01134192]
[1744445184174,0.0678891,83774.0,83773.0,0.13218346]
[1744445184548,0.0126891,83774.0,83773.0,0.4828835]
[1744445184763,0.0126891,83774.0,83773.0,0.48049629]
[1744445186189,0.0126891,83774.0,83773.0,0.90323694]
[1744445187318,0.00672409,83774.0,83773.0,0.90323694]
[1744445188141,9e-08,83774.0,83773.0,0.90323694]
[1744445188348,9e-08,83774.0,83773.0,0.94903694]
[1744445190065,0.002,83779.0,83773.0,0.94903694]
[1744445190066,0.002,83779.0,83778.0,0.59326685]
[1744445190280,0.00208887,83779.0,83778.0,0.72242122]
[1744445190833,0.00208887,83779.0,83778.0,0.72988366]
[1744445191284,0.00208887,83779.0,83778.0,0.73376314]
[1744445191634,0.00208887,83779.0,83778.0,1.14196294]
[1744445193628,0.00208887,83779.0,83778.0,1.30624294]
[1744445193862,0.00208887,83779.0,83778.0,1.37876472]
[1744445195261,0.0461,83797.0,83796.0,0.238674]
[1744445195464,0.0024217,83809.0,83799.0,0.578666]
[1744445195675,0.0024217,83809.0,83799.0,0.59320685]
[1744445195982,0.01046504,83800.0,83799.0,0.62102724]
[1744445196184,0.0434451,83813.0,83812.0,0.34]
[1744445196628,0.04358456,83813.0,83812.0,0.34746244]
[1744445196824,0.00013946,83813.0,83812.0,0.35577527]
[1744445197000,0.00013946,83813.0,83812.0,0.36857338]
[1744445197204,0.0049351,83820.0,83819.0,0.578609]
[1744445197435,0.0466,83821.0,83820.0,0.34]
[1744445197806,0.0004221,83826.0,83821.0,0.01193]
[1744445198001,0.0004221,83826.0,83822.0,0.34984812]
[1744445198131,0.0004221,83826.0,83823.0,0.24690983]
[1744445198334,0.0004221,83826.0,83823.0,0.59437227]
[1744445198781,0.0004221,83826.0,83823.0,0.59825175]
[1744445199137,0.0004221,83826.0,83823.0,0.35965475]
[1744445199138,0.0476217,83824.0,83823.0,0.35965475]
[1744445199475,0.0576217,83824.0,83823.0,0.01965475]
[1744445199877,0.0576217,83824.0,83823.0,0.01134192]
[1744445200085,0.0476217,83824.0,83823.0,0.01134192]
[1744445200228,0.0576217,83824.0,83823.0,0.01134192]
[1744445200628,0.0476217,83824.0,83823.0,0.01965475]
[1744445201437,0.00969935,83824.0,83823.0,0.01965475]
[1744445202184,0.00969935,83824.0,83823.0,0.01134192]
[1744445202599,0.0004221,83826.0,83824.0,0.238595]
[1744445202756,0.0004221,83826.0,83825.0,0.12084154]
[1744445202958,0.0004221,83826.0,83823.0,0.06694521]
[1744445203192,0.0004221,83826.0,83825.0,0.00746244]
[1744445203413,0.0104221,83826.0,83825.0,0.00746244]
[1744445203715,0.0104221,83826.0,83824.0,0.00387948]
[1744445204734,0.0483,83825.0,83824.0,0.00387948]
[1744445204938,0.0583,83825.0,83824.0,0.00387948]
[1744445205226,0.0583,83825.0,83823.0,0.011929]
[1744445205654,0.0583,83825.0,83824.0,0.238595]
[1744445205804,0.0583,83825.0,83824.0,0.24605744]
[1744445206406,0.0583,83825.0,83824.0,0.00746244]
[1744445206825,0.0004221,83826.0,83825.0,0.238592]
[1744445207021,0.0004221,83826.0,83825.0,0.69943354]
[1744445207535,0.0004221,83826.0,83825.0,0.71066017]
[1744445207745,0.0004221,83826.0,83825.0,0.71892384]
[1744445209953,0.0004221,83826.0,83825.0,0.3594903]
[1744445210153,0.0004221,83826.0,83825.0,0.35122663]
[1744445210371,0.0004221,83826.0,83825.0,0.59808305]
[1744445210608,0.0004221,83826.0,83825.0,0.01949105]
[1744445210609,0.0602221,83826.0,83825.0,0.01949105]
[1744445210810,0.1088221,83826.0,83825.0,0.01949105]
[1744445212083,0.1088221,83826.0,83825.0,0.01202861]
[1744445212271,0.1088221,83826.0,83825.0,0.00376419]
[1744445217199,0.01193,83822.0,83817.0,0.01569419]
[1744445217435,0.02,83822.0,83820.0,0.01193]
[1744445217944,0.02,83822.0,83821.0,0.00376419]
[1744445219107,0.02,83822.0,83821.0,0.01121837]
[1744445220264,0.0004221,83826.0,83823.0,0.011929]
[1744445220428,0.0004221,83826.0,83823.0,0.02258781]
[1744445220629,0.0004221,83826.0,83824.0,0.00745418]
[1744445220879,0.0004221,83826.0,83824.0,0.24604918]
[1744445221218,0.0004221,83826.0,83825.0,0.01949146]
[1744445221417,0.0104221,83826.0,83825.0,0.01949146]
[1744445221653,0.0104221,83826.0,83825.0,0.01203728]
[1744445223074,0.0004221,83826.0,83825.0,0.01203728]
[1744445223268,0.0004221,83826.0,83825.0,0.01442293]
[1744445223883,0.0004221,83826.0,83825.0,0.02187711]
[1744445224100,0.0004221,83826.0,83825.0,0.01949146]
[1744445224670,0.0104221,83826.0,83825.0,0.01949146]
[1744445224876,0.0104221,83826.0,83825.0,0.25808346]